[Event "*** SCC Grand Prix: Titled Tuesday Blitz"]
[Site "Chess.com"]
[Date "2020.07.14"]
[Round "4"]
[White "aloe_normansen"]
[Black "eCztery"]
[Result "1-0"]
[WhiteElo "2220"]
[BlackElo "2421"]
[TimeControl "180+1"]
[EndTime "10:35:58 PDT"]
[Termination "aloe_normansen won by resignation"]

1. e4 {[%clk 0:03:00.9]} 1... c5 {[%clk 0:02:52.5]} 2. Nf3 {[%clk 0:03:00.8]}
2... g6 {[%clk 0:02:50.6]} 3. d4 {[%clk 0:03:01]} 3... cxd4 {[%clk 0:02:51.5]}
4. Nxd4 {[%clk 0:03:01.4]} 4... Nc6 {[%clk 0:02:51.5]} 5. Nc3 {[%clk 0:03:00.8]}
5... Bg7 {[%clk 0:02:51.4]} 6. Be3 {[%clk 0:03:01]} 6... Nf6 {[%clk 0:02:51.4]}
7. Nxc6 {[%clk 0:03:00.4]} 7... bxc6 {[%clk 0:02:52.3]} 8. e5 {[%clk 0:03:00.8]}
8... Ng8 {[%clk 0:02:52.6]} 9. Bd4 {[%clk 0:02:59.9]} 9... Qa5 {[%clk
0:02:51.3]} 10. Bc4 {[%clk 0:02:58.5]} 10... Bxe5 {[%clk 0:02:50]} 11. O-O
{[%clk 0:02:58.2]} 11... Bxd4 {[%clk 0:02:48]} 12. Qxd4 {[%clk 0:02:57.6]} 12...
Nf6 {[%clk 0:02:48.2]} 13. Rfe1 {[%clk 0:02:56.7]} 13... Qf5 {[%clk 0:02:23.3]}
14. Re5 {[%clk 0:02:52.2]} 14... Qg4 {[%clk 0:02:19.8]} 15. Rxe7+ {[%clk
0:02:43.8]} 15... Kxe7 {[%clk 0:02:16.6]} 16. Re1+ {[%clk 0:02:41.4]} 16... Qe6
{[%clk 0:02:14.4]} 17. Bxe6 {[%clk 0:02:36.2]} 17... dxe6 {[%clk 0:02:11.8]} 18.
Qc5+ {[%clk 0:01:59.8]} 18... Kd7 {[%clk 0:02:04.3]} 19. Qe5 {[%clk 0:01:45.6]}
19... Ke7 {[%clk 0:02:00.8]} 20. Ne4 {[%clk 0:01:44.7]} 20... Nxe4 {[%clk
0:01:57.9]} 21. Qxh8 {[%clk 0:01:40.2]} 21... Bb7 {[%clk 0:01:58.4]} 22. Qd4
{[%clk 0:01:33.9]} 22... Nf6 {[%clk 0:01:52.4]} 23. Qb4+ {[%clk 0:01:32.1]} 1-0

[Event "*** SCC Grand Prix: Titled Tuesday Blitz"]
[Site "Chess.com"]
[Date "2020.07.14"]
[Round "4"]
[White "davigator"]
[Black "crazychessbr"]
[Result "1-0"]
[WhiteElo "2362"]
[BlackElo "2072"]
[TimeControl "180+1"]
[EndTime "10:36:23 PDT"]
[Termination "davigator won by resignation"]

1. e4 {[%clk 0:03:00.9]} 1... e6 {[%clk 0:02:59.9]} 2. d4 {[%clk 0:02:59.5]}
2... d5 {[%clk 0:03:00.8]} 3. Nc3 {[%clk 0:02:58.6]} 3... Nf6 {[%clk 0:03:00.2]}
4. e5 {[%clk 0:02:58]} 4... Nfd7 {[%clk 0:03:00]} 5. f4 {[%clk 0:02:58.9]} 5...
c5 {[%clk 0:03:00.5]} 6. Nf3 {[%clk 0:02:59.5]} 6... Nc6 {[%clk 0:03:01]} 7. Be3
{[%clk 0:02:59.9]} 7... Qb6 {[%clk 0:03:01.1]} 8. a3 {[%clk 0:02:59.1]} 8...
cxd4 {[%clk 0:02:54.7]} 9. Nxd4 {[%clk 0:02:58]} 9... Nxd4 {[%clk 0:02:49.2]}
10. Bxd4 {[%clk 0:02:56.4]} 10... Bc5 {[%clk 0:02:48.3]} 11. Na4 {[%clk
0:02:56.3]} 11... Qa5+ {[%clk 0:02:47.1]} 12. c3 {[%clk 0:02:56.8]} 12... Bxd4
{[%clk 0:02:46.6]} 13. Qxd4 {[%clk 0:02:57.7]} 13... O-O {[%clk 0:02:29.5]} 14.
Be2 {[%clk 0:02:57.6]} 14... b5 {[%clk 0:02:27.3]} 15. Nc5 {[%clk 0:02:56.6]}
15... Nxc5 {[%clk 0:02:27]} 16. Qxc5 {[%clk 0:02:57]} 16... Ba6 {[%clk
0:02:22.7]} 17. O-O {[%clk 0:02:55.2]} 17... Rfc8 {[%clk 0:02:17.3]} 18. Qb4
{[%clk 0:02:54.9]} 18... Qxb4 {[%clk 0:02:13.7]} 19. axb4 {[%clk 0:02:54.1]}
19... Rc6 {[%clk 0:01:50.5]} 20. Rfd1 {[%clk 0:02:52.7]} 20... Rb6 {[%clk
0:01:46.9]} 21. Ra5 {[%clk 0:02:50.3]} 21... Rc8 {[%clk 0:01:29.1]} 22. Kf2
{[%clk 0:02:37.1]} 22... Kf8 {[%clk 0:01:13.1]} 23. Ke3 {[%clk 0:02:35.1]} 23...
Ke8 {[%clk 0:00:48.3]} 24. Rda1 {[%clk 0:02:30]} 24... Rcc6 {[%clk 0:00:47.7]}
25. Rxa6 {[%clk 0:02:28.1]} 25... Rxa6 {[%clk 0:00:46.7]} 26. Rxa6 {[%clk
0:02:28.3]} 26... d4+ {[%clk 0:00:39.9]} 27. Kxd4 {[%clk 0:02:26.1]} 1-0

[Event "*** SCC Grand Prix: Titled Tuesday Blitz"]
[Site "Chess.com"]
[Date "2020.07.14"]
[Round "4"]
[White "temus_galaktionov"]
[Black "Gahan-MG"]
[Result "1-0"]
[WhiteElo "2669"]
[BlackElo "2471"]
[TimeControl "180+1"]
[EndTime "10:36:31 PDT"]
[Termination "temus_galaktionov won by resignation"]

1. d4 {[%clk 0:03:00.9]} 1... Nf6 {[%clk 0:03:00.9]} 2. Nf3 {[%clk 0:02:58.8]}
2... g6 {[%clk 0:03:01]} 3. c4 {[%clk 0:02:58.9]} 3... Bg7 {[%clk 0:03:00.8]} 4.
Nc3 {[%clk 0:02:59.5]} 4... d5 {[%clk 0:03:00.9]} 5. cxd5 {[%clk 0:02:59.8]}
5... Nxd5 {[%clk 0:03:01.8]} 6. e4 {[%clk 0:03:00.4]} 6... Nxc3 {[%clk
0:03:00.7]} 7. bxc3 {[%clk 0:03:01.3]} 7... c5 {[%clk 0:03:01.3]} 8. Be3 {[%clk
0:02:55.6]} 8... Nc6 {[%clk 0:03:00.5]} 9. Qd2 {[%clk 0:02:51.6]} 9... O-O
{[%clk 0:02:55.8]} 10. d5 {[%clk 0:02:50.8]} 10... Qa5 {[%clk 0:02:54.3]} 11.
Rc1 {[%clk 0:02:44.3]} 11... Rd8 {[%clk 0:02:51.1]} 12. Be2 {[%clk 0:02:43.4]}
12... e6 {[%clk 0:02:46.9]} 13. O-O {[%clk 0:02:42.7]} 13... exd5 {[%clk
0:02:45.3]} 14. exd5 {[%clk 0:02:43.6]} 14... Bf5 {[%clk 0:02:34.8]} 15. Rfd1
{[%clk 0:02:40]} 15... Ne5 {[%clk 0:02:30.9]} 16. Nxe5 {[%clk 0:02:20.9]} 16...
Bxe5 {[%clk 0:02:31.8]} 17. c4 {[%clk 0:02:21.8]} 17... Qc7 {[%clk 0:02:29.8]}
18. g3 {[%clk 0:02:21.1]} 18... h5 {[%clk 0:02:27.3]} 19. Bg5 {[%clk 0:02:16.2]}
19... Rd7 {[%clk 0:02:24.5]} 20. Bf3 {[%clk 0:02:15.8]} 20... Re8 {[%clk
0:02:18.6]} 21. Kg2 {[%clk 0:02:15.2]} 21... Bd4 {[%clk 0:02:14.3]} 22. Re1
{[%clk 0:02:11.9]} 22... Rc8 {[%clk 0:02:00.6]} 23. h3 {[%clk 0:02:08.6]} 23...
f6 {[%clk 0:01:49.1]} 24. Bf4 {[%clk 0:02:07.9]} 24... Be5 {[%clk 0:01:40.3]}
25. Bxe5 {[%clk 0:02:03.3]} 25... fxe5 {[%clk 0:01:41.2]} 26. g4 {[%clk
0:01:36.6]} 26... hxg4 {[%clk 0:01:39.5]} 27. hxg4 {[%clk 0:01:37.5]} 27... Be6
{[%clk 0:01:39.6]} 28. Qh6 {[%clk 0:01:28.5]} 1-0

[Event "*** SCC Grand Prix: Titled Tuesday Blitz"]
[Site "Chess.com"]
[Date "2020.07.14"]
[Round "4"]
[White "XxPetroffsxX"]
[Black "andrzej"]
[Result "0-1"]
[WhiteElo "1940"]
[BlackElo "2201"]
[TimeControl "180+1"]
[EndTime "10:36:38 PDT"]
[Termination "andrzej won by resignation"]

1. e4 {[%clk 0:02:59.9]} 1... c6 {[%clk 0:02:59.8]} 2. Nc3 {[%clk 0:02:59]} 2...
d5 {[%clk 0:03:00]} 3. d4 {[%clk 0:02:59.5]} 3... dxe4 {[%clk 0:02:58.9]} 4.
Nxe4 {[%clk 0:03:00]} 4... Bf5 {[%clk 0:02:59.2]} 5. Ng3 {[%clk 0:02:59.8]} 5...
Bg6 {[%clk 0:02:59.9]} 6. h4 {[%clk 0:03:00.4]} 6... h6 {[%clk 0:03:00.5]} 7.
Nf3 {[%clk 0:03:00.6]} 7... Nd7 {[%clk 0:03:01.2]} 8. h5 {[%clk 0:03:01.1]} 8...
Bh7 {[%clk 0:03:01.9]} 9. Bd3 {[%clk 0:03:01.5]} 9... Bxd3 {[%clk 0:03:02.6]}
10. Qxd3 {[%clk 0:03:02.1]} 10... e6 {[%clk 0:03:03.3]} 11. Bd2 {[%clk
0:03:02.5]} 11... Ngf6 {[%clk 0:03:02]} 12. O-O-O {[%clk 0:03:02.6]} 12... a5
{[%clk 0:03:02.7]} 13. Ne4 {[%clk 0:03:02.5]} 13... Nxe4 {[%clk 0:03:02.6]} 14.
Qxe4 {[%clk 0:03:02.5]} 14... Nf6 {[%clk 0:02:59.9]} 15. Qe2 {[%clk 0:03:02.2]}
15... Bb4 {[%clk 0:02:55.5]} 16. c3 {[%clk 0:02:57.8]} 16... Be7 {[%clk
0:02:55.7]} 17. Kb1 {[%clk 0:02:57.3]} 17... a4 {[%clk 0:02:50.7]} 18. c4 {[%clk
0:02:54]} 18... a3 {[%clk 0:02:49.4]} 19. b3 {[%clk 0:02:53.8]} 19... b5 {[%clk
0:02:24.6]} 20. Bc3 {[%clk 0:02:46.4]} 20... bxc4 {[%clk 0:02:22.9]} 21. bxc4
{[%clk 0:02:46.1]} 21... Rb8+ {[%clk 0:02:04.3]} 22. Ka1 {[%clk 0:02:45.3]}
22... O-O {[%clk 0:02:02.1]} 23. Ne5 {[%clk 0:02:36]} 23... Qc7 {[%clk
0:01:53.5]} 24. f4 {[%clk 0:02:33.3]} 24... Rfd8 {[%clk 0:01:47.3]} 25. g4
{[%clk 0:02:31.7]} 25... Bb4 {[%clk 0:01:43]} 26. Bxb4 {[%clk 0:02:27]} 26...
Rxb4 {[%clk 0:01:43.9]} 27. g5 {[%clk 0:02:20.3]} 27... Rb2 {[%clk 0:01:42]} 28.
Qe3 {[%clk 0:02:16.4]} 28... Qb7 {[%clk 0:01:16.5]} 29. gxf6 {[%clk 0:02:03.1]}
29... Rxa2+ {[%clk 0:01:14]} 0-1

[Event "*** SCC Grand Prix: Titled Tuesday Blitz"]
[Site "Chess.com"]
[Date "2020.07.14"]
[Round "4"]
[White "Michaelson_11"]
[Black "ErikRonka"]
[Result "0-1"]
[WhiteElo "2105"]
[BlackElo "2364"]
[TimeControl "180+1"]
[EndTime "10:36:56 PDT"]
[Termination "ErikRonka won by resignation"]

1. e4 {[%clk 0:03:00.9]} 1... g6 {[%clk 0:02:55.5]} 2. d4 {[%clk 0:03:00]} 2...
Bg7 {[%clk 0:02:55.3]} 3. Bc4 {[%clk 0:03:00.3]} 3... e6 {[%clk 0:02:54.3]} 4.
Nf3 {[%clk 0:03:00.3]} 4... d6 {[%clk 0:02:54.2]} 5. O-O {[%clk 0:02:56.6]} 5...
a6 {[%clk 0:02:54]} 6. Qe2 {[%clk 0:02:50.6]} 6... h6 {[%clk 0:02:52.8]} 7. d5
{[%clk 0:02:47.9]} 7... e5 {[%clk 0:02:50.9]} 8. Bb3 {[%clk 0:02:46.6]} 8... Ne7
{[%clk 0:02:34.4]} 9. Ne1 {[%clk 0:02:38.3]} 9... Nd7 {[%clk 0:02:29.9]} 10. g3
{[%clk 0:02:38.2]} 10... O-O {[%clk 0:02:25.2]} 11. Ng2 {[%clk 0:02:39.1]} 11...
f5 {[%clk 0:02:21.2]} 12. f4 {[%clk 0:02:37.9]} 12... fxe4 {[%clk 0:02:19.7]}
13. Qxe4 {[%clk 0:02:36.9]} 13... Nf5 {[%clk 0:02:11.3]} 14. g4 {[%clk
0:02:32.9]} 14... Nc5 {[%clk 0:02:09.3]} 15. Qf3 {[%clk 0:02:19.7]} 15... Nd4
{[%clk 0:02:04.8]} 16. Qh3 {[%clk 0:02:13.2]} 16... Ne2+ {[%clk 0:01:46.9]} 17.
Kh1 {[%clk 0:02:12]} 17... Nxc1 {[%clk 0:01:46.8]} 18. Rxc1 {[%clk 0:02:09.7]}
18... exf4 {[%clk 0:01:46.7]} 19. Nc3 {[%clk 0:02:06.1]} 19... Qg5 {[%clk
0:01:33.5]} 20. Qh4 {[%clk 0:01:54.3]} 20... Qxg4 {[%clk 0:01:24.6]} 21. Rf1
{[%clk 0:01:51.4]} 21... Qxh4 {[%clk 0:01:16.6]} 22. Nxh4 {[%clk 0:01:52.3]}
22... g5 {[%clk 0:01:16.1]} 23. Ng6 {[%clk 0:01:52.3]} 23... Re8 {[%clk
0:01:03.6]} 24. Rae1 {[%clk 0:01:51.8]} 24... Bh3 {[%clk 0:01:02]} 0-1

[Event "*** SCC Grand Prix: Titled Tuesday Blitz"]
[Site "Chess.com"]
[Date "2020.07.14"]
[Round "4"]
[White "GM_LOADING"]
[Black "AsselLesbekova"]
[Result "1-0"]
[WhiteElo "2579"]
[BlackElo "2328"]
[TimeControl "180+1"]
[EndTime "10:37:00 PDT"]
[Termination "GM_LOADING won by resignation"]

1. e4 {[%clk 0:03:00.9]} 1... c5 {[%clk 0:02:58.6]} 2. Nf3 {[%clk 0:03:00.1]}
2... Nc6 {[%clk 0:02:58.7]} 3. d4 {[%clk 0:03:00.7]} 3... cxd4 {[%clk
0:02:59.6]} 4. Nxd4 {[%clk 0:03:01.5]} 4... e5 {[%clk 0:02:59.7]} 5. Nb5 {[%clk
0:03:00.7]} 5... d6 {[%clk 0:02:59.8]} 6. c4 {[%clk 0:02:57.6]} 6... Be7 {[%clk
0:02:59.1]} 7. Bd3 {[%clk 0:02:47.4]} 7... a6 {[%clk 0:02:58.7]} 8. N5c3 {[%clk
0:02:47.3]} 8... Be6 {[%clk 0:02:58.4]} 9. O-O {[%clk 0:02:46.5]} 9... Nf6
{[%clk 0:02:57.6]} 10. Nd5 {[%clk 0:02:45.1]} 10... O-O {[%clk 0:02:54.7]} 11.
Nbc3 {[%clk 0:02:45.2]} 11... Rc8 {[%clk 0:02:53]} 12. Be3 {[%clk 0:02:38.4]}
12... Nd7 {[%clk 0:02:52.1]} 13. Rc1 {[%clk 0:02:25.4]} 13... Re8 {[%clk
0:02:50.8]} 14. Qd2 {[%clk 0:02:22.2]} 14... Bf8 {[%clk 0:02:48.7]} 15. b3
{[%clk 0:02:20.6]} 15... g6 {[%clk 0:02:37]} 16. b4 {[%clk 0:02:08.4]} 16... Bg7
{[%clk 0:02:31.4]} 17. Bg5 {[%clk 0:01:45.9]} 17... f6 {[%clk 0:02:29]} 18. Be3
{[%clk 0:01:46.1]} 18... Rf8 {[%clk 0:02:20.8]} 19. Bb1 {[%clk 0:01:41.1]} 19...
f5 {[%clk 0:02:16.1]} 20. Bg5 {[%clk 0:01:29.9]} 20... Qe8 {[%clk 0:02:10.3]}
21. f3 {[%clk 0:01:29.9]} 21... f4 {[%clk 0:02:07.4]} 22. b5 {[%clk 0:01:27.1]}
22... axb5 {[%clk 0:02:03.1]} 23. Nxb5 {[%clk 0:01:19.5]} 23... Ra8 {[%clk
0:01:21.2]} 24. Ndc7 {[%clk 0:01:12.3]} 24... Qf7 {[%clk 0:01:19.7]} 25. Nxd6
{[%clk 0:01:11.9]} 1-0

[Event "*** SCC Grand Prix: Titled Tuesday Blitz"]
[Site "Chess.com"]
[Date "2020.07.14"]
[Round "4"]
[White "rasmussvane"]
[Black "Arjun2002"]
[Result "1-0"]
[WhiteElo "2887"]
[BlackElo "2657"]
[TimeControl "180+1"]
[EndTime "10:37:07 PDT"]
[Termination "rasmussvane won by resignation"]

1. Nf3 {[%clk 0:03:00.9]} 1... d5 {[%clk 0:02:59.4]} 2. g3 {[%clk 0:03:01]} 2...
c6 {[%clk 0:02:59.4]} 3. Bg2 {[%clk 0:03:01.3]} 3... Bg4 {[%clk 0:02:59.2]} 4.
O-O {[%clk 0:03:01.8]} 4... Nd7 {[%clk 0:02:58.6]} 5. h3 {[%clk 0:02:59.8]} 5...
Bh5 {[%clk 0:02:56.9]} 6. d4 {[%clk 0:02:56.6]} 6... Ngf6 {[%clk 0:02:55.5]} 7.
c4 {[%clk 0:02:56.3]} 7... e6 {[%clk 0:02:55.2]} 8. cxd5 {[%clk 0:02:56.6]} 8...
exd5 {[%clk 0:02:55.2]} 9. Ne5 {[%clk 0:02:57]} 9... Nxe5 {[%clk 0:02:45.5]} 10.
dxe5 {[%clk 0:02:57.9]} 10... Ne4 {[%clk 0:02:44.8]} 11. Bxe4 {[%clk 0:02:50.1]}
11... dxe4 {[%clk 0:02:42.5]} 12. Nc3 {[%clk 0:02:50.5]} 12... Qxd1 {[%clk
0:02:30.5]} 13. Rxd1 {[%clk 0:02:51.4]} 13... Bb4 {[%clk 0:02:07.6]} 14. Nxe4
{[%clk 0:02:50.9]} 14... Bxe2 {[%clk 0:02:06.5]} 15. Rd4 {[%clk 0:02:51.3]}
15... Be7 {[%clk 0:02:01]} 16. Bg5 {[%clk 0:02:51.4]} 16... Bf3 {[%clk
0:01:50.2]} 17. Bxe7 {[%clk 0:02:18.4]} 17... Bxe4 {[%clk 0:01:49.7]} 18. Bf6
{[%clk 0:02:11.5]} 18... gxf6 {[%clk 0:01:18.8]} 19. Rxe4 {[%clk 0:02:11.3]}
19... Ke7 {[%clk 0:01:16.3]} 20. exf6+ {[%clk 0:02:02.3]} 20... Kxf6 {[%clk
0:01:16]} 21. Rae1 {[%clk 0:02:02.9]} 21... Rhd8 {[%clk 0:01:09.5]} 22. Rf4+
{[%clk 0:02:00.2]} 22... Kg6 {[%clk 0:01:00.3]} 23. Re7 {[%clk 0:01:59.3]} 23...
Rf8 {[%clk 0:00:45.1]} 24. Rxb7 {[%clk 0:01:56.4]} 24... Rab8 {[%clk 0:00:45.4]}
25. Rfb4 {[%clk 0:01:49.8]} 25... Rxb7 {[%clk 0:00:32.6]} 26. Rxb7 {[%clk
0:01:50.7]} 26... a5 {[%clk 0:00:33.1]} 27. Rc7 {[%clk 0:01:43.6]} 1-0

[Event "*** SCC Grand Prix: Titled Tuesday Blitz"]
[Site "Chess.com"]
[Date "2020.07.14"]
[Round "4"]
[White "SGchess01"]
[Black "jsl796"]
[Result "1-0"]
[WhiteElo "2636"]
[BlackElo "2849"]
[TimeControl "180+1"]
[EndTime "10:37:14 PDT"]
[Termination "SGchess01 won by resignation"]

1. d4 {[%clk 0:02:58.8]} 1... Nf6 {[%clk 0:02:58.7]} 2. Bf4 {[%clk 0:02:58.8]}
2... c5 {[%clk 0:02:55.2]} 3. dxc5 {[%clk 0:02:58.8]} 3... e6 {[%clk 0:02:54.9]}
4. Nc3 {[%clk 0:02:57.6]} 4... Bxc5 {[%clk 0:02:54.3]} 5. e4 {[%clk 0:02:53]}
5... Bb4 {[%clk 0:02:47.8]} 6. Bd3 {[%clk 0:02:45.5]} 6... Nc6 {[%clk
0:02:44.1]} 7. Ne2 {[%clk 0:02:45]} 7... d5 {[%clk 0:02:43.8]} 8. a3 {[%clk
0:02:32.1]} 8... Ba5 {[%clk 0:02:41.8]} 9. exd5 {[%clk 0:02:21.6]} 9... Nxd5
{[%clk 0:02:38.4]} 10. Bd2 {[%clk 0:02:21.7]} 10... O-O {[%clk 0:02:36.4]} 11.
O-O {[%clk 0:02:21.4]} 11... Nf6 {[%clk 0:02:36.3]} 12. Bg5 {[%clk 0:02:19]}
12... h6 {[%clk 0:02:35.8]} 13. Bh4 {[%clk 0:02:19.1]} 13... Ne5 {[%clk
0:02:31.1]} 14. Ne4 {[%clk 0:02:16.2]} 14... g5 {[%clk 0:02:30.6]} 15. Nxf6+
{[%clk 0:02:15.3]} 15... Qxf6 {[%clk 0:02:29.9]} 16. Bg3 {[%clk 0:02:15.9]}
16... Bb6 {[%clk 0:02:28.8]} 17. Nc3 {[%clk 0:02:14.5]} 17... Bd7 {[%clk
0:02:25.2]} 18. Be4 {[%clk 0:01:51.8]} 18... Rad8 {[%clk 0:02:22.7]} 19. Qh5
{[%clk 0:01:50.6]} 19... Kg7 {[%clk 0:02:18.9]} 20. Kh1 {[%clk 0:01:49.4]} 20...
Ng6 {[%clk 0:02:15.7]} 21. Bxb7 {[%clk 0:01:45.6]} 21... Bd4 {[%clk 0:02:13.4]}
22. Ne4 {[%clk 0:01:38.3]} 22... Qf5 {[%clk 0:02:13.6]} 23. Nd6 {[%clk
0:01:38.4]} 23... Qxc2 {[%clk 0:02:09.4]} 24. Be4 {[%clk 0:01:36.3]} 24... Qxb2
{[%clk 0:01:40.6]} 25. Nxf7 {[%clk 0:01:34.1]} 25... Ne7 {[%clk 0:01:26.2]} 26.
Nxd8 {[%clk 0:01:10.8]} 26... Rxd8 {[%clk 0:01:27.1]} 27. f4 {[%clk 0:01:11.2]}
27... Nf5 {[%clk 0:01:11.9]} 28. Bxf5 {[%clk 0:01:08.9]} 28... exf5 {[%clk
0:01:12.8]} 29. fxg5 {[%clk 0:01:09.4]} 29... Bc6 {[%clk 0:01:13.3]} 30. Qxh6+
{[%clk 0:01:06.2]} 30... Kg8 {[%clk 0:01:11.1]} 31. Qxc6 {[%clk 0:01:06.6]} 1-0

[Event "*** SCC Grand Prix: Titled Tuesday Blitz"]
[Site "Chess.com"]
[Date "2020.07.14"]
[Round "4"]
[White "AndrewMaco"]
[Black "Slovak_fighter2000"]
[Result "1-0"]
[WhiteElo "2618"]
[BlackElo "2439"]
[TimeControl "180+1"]
[EndTime "10:37:22 PDT"]
[Termination "AndrewMaco won by resignation"]

1. e4 {[%clk 0:03:00.9]} 1... e6 {[%clk 0:02:56]} 2. d4 {[%clk 0:02:51.6]} 2...
d5 {[%clk 0:02:55.9]} 3. Nc3 {[%clk 0:02:52.3]} 3... Nf6 {[%clk 0:02:53]} 4. e5
{[%clk 0:02:52.4]} 4... Nfd7 {[%clk 0:02:51.9]} 5. f4 {[%clk 0:02:52.8]} 5... c5
{[%clk 0:02:51.7]} 6. Nf3 {[%clk 0:02:53.3]} 6... Nc6 {[%clk 0:02:51.4]} 7. Be3
{[%clk 0:02:53.3]} 7... Be7 {[%clk 0:02:51.4]} 8. Qd2 {[%clk 0:02:52.5]} 8...
O-O {[%clk 0:02:50.4]} 9. dxc5 {[%clk 0:02:52.3]} 9... Bxc5 {[%clk 0:02:50.1]}
10. O-O-O {[%clk 0:02:50.3]} 10... a6 {[%clk 0:02:48.7]} 11. Bxc5 {[%clk
0:02:49.2]} 11... Nxc5 {[%clk 0:02:49.6]} 12. Qe3 {[%clk 0:02:41.2]} 12... b6
{[%clk 0:02:42.7]} 13. h4 {[%clk 0:02:35.7]} 13... Bb7 {[%clk 0:02:39.3]} 14. h5
{[%clk 0:02:35.1]} 14... Qc7 {[%clk 0:02:30.2]} 15. h6 {[%clk 0:02:32.7]} 15...
g6 {[%clk 0:02:29.6]} 16. Kb1 {[%clk 0:02:32.3]} 16... Rfd8 {[%clk 0:02:21.9]}
17. Ne2 {[%clk 0:02:16]} 17... Ne4 {[%clk 0:02:14.4]} 18. Ned4 {[%clk
0:02:15.4]} 18... Nxd4 {[%clk 0:02:14.2]} 19. Nxd4 {[%clk 0:02:15.1]} 19... Rac8
{[%clk 0:02:07.8]} 20. Bd3 {[%clk 0:02:13.4]} 20... b5 {[%clk 0:01:58.5]} 21.
Rhf1 {[%clk 0:01:44.8]} 21... b4 {[%clk 0:01:53.4]} 22. Qh3 {[%clk 0:01:44.4]}
22... a5 {[%clk 0:01:44.5]} 23. Qh4 {[%clk 0:01:43.3]} 23... Qc5 {[%clk
0:01:33.6]} 24. Nb3 {[%clk 0:01:43.5]} 24... Qf8 {[%clk 0:01:23.7]} 25. Nxa5
{[%clk 0:01:42.5]} 25... Ba8 {[%clk 0:01:09.9]} 26. Nb3 {[%clk 0:01:42.6]} 26...
Rd7 {[%clk 0:01:02.1]} 27. g4 {[%clk 0:01:42.2]} 27... f6 {[%clk 0:00:27.4]} 28.
Bxe4 {[%clk 0:01:39.4]} 1-0

[Event "*** SCC Grand Prix: Titled Tuesday Blitz"]
[Site "Chess.com"]
[Date "2020.07.14"]
[Round "4"]
[White "Zablotsky"]
[Black "AsaHoffmann"]
[Result "1-0"]
[WhiteElo "2584"]
[BlackElo "2392"]
[TimeControl "180+1"]
[EndTime "10:37:24 PDT"]
[Termination "Zablotsky won by resignation"]

1. e4 {[%clk 0:03:00.5]} 1... d6 {[%clk 0:02:57.7]} 2. d4 {[%clk 0:02:51.9]}
2... Nf6 {[%clk 0:02:56.4]} 3. Nc3 {[%clk 0:02:51.5]} 3... c6 {[%clk 0:02:55.9]}
4. Nf3 {[%clk 0:02:51.3]} 4... Bg4 {[%clk 0:02:54.8]} 5. h3 {[%clk 0:02:51.1]}
5... Bh5 {[%clk 0:02:54.2]} 6. g4 {[%clk 0:02:51.7]} 6... Bg6 {[%clk 0:02:53.9]}
7. Qe2 {[%clk 0:02:51.6]} 7... e6 {[%clk 0:02:53.6]} 8. e5 {[%clk 0:02:50.5]}
8... Nd5 {[%clk 0:02:50.8]} 9. Bg2 {[%clk 0:02:50.1]} 9... Nb4 {[%clk
0:02:35.9]} 10. O-O {[%clk 0:02:46.8]} 10... Nxc2 {[%clk 0:02:34]} 11. Bg5
{[%clk 0:02:46.3]} 11... Be7 {[%clk 0:02:22]} 12. Bxe7 {[%clk 0:02:43.9]} 12...
Qxe7 {[%clk 0:02:21.9]} 13. Rad1 {[%clk 0:02:43.1]} 13... Nb4 {[%clk 0:02:18.5]}
14. exd6 {[%clk 0:02:38]} 14... Qxd6 {[%clk 0:02:17.8]} 15. Ne5 {[%clk
0:02:37.8]} 15... O-O {[%clk 0:02:08.8]} 16. f4 {[%clk 0:02:36.4]} 16... f6
{[%clk 0:01:55.3]} 17. Nxg6 {[%clk 0:02:34.3]} 17... hxg6 {[%clk 0:01:55.1]} 18.
Ne4 {[%clk 0:02:33.8]} 18... Qe7 {[%clk 0:01:44.9]} 19. Nc5 {[%clk 0:02:32.5]}
19... Nd7 {[%clk 0:01:30.3]} 20. Nxb7 {[%clk 0:02:26.3]} 20... Rab8 {[%clk
0:01:20.3]} 21. Na5 {[%clk 0:02:26.1]} 21... Rfc8 {[%clk 0:01:13.7]} 22. a3
{[%clk 0:02:25.8]} 22... Nd5 {[%clk 0:01:10.5]} 23. Nxc6 {[%clk 0:02:25.5]}
23... Rxc6 {[%clk 0:01:08]} 24. Bxd5 {[%clk 0:02:25.1]} 24... Rcb6 {[%clk
0:00:59.4]} 25. b4 {[%clk 0:02:24.5]} 25... Qd6 {[%clk 0:00:52.7]} 26. Ba2
{[%clk 0:02:23.4]} 26... a5 {[%clk 0:00:48.8]} 27. bxa5 {[%clk 0:02:23.2]} 27...
Ra6 {[%clk 0:00:39.8]} 28. Rf3 {[%clk 0:02:22.5]} 28... Nf8 {[%clk 0:00:38.5]}
29. d5 {[%clk 0:02:22.4]} 29... e5 {[%clk 0:00:36.5]} 30. Rc1 {[%clk 0:02:22.1]}
30... Rxa5 {[%clk 0:00:30.7]} 31. fxe5 {[%clk 0:02:21.5]} 31... Qb6+ {[%clk
0:00:24.1]} 32. Kh1 {[%clk 0:02:18.6]} 32... fxe5 {[%clk 0:00:17.9]} 33. Qxe5
{[%clk 0:02:15.4]} 33... Rc5 {[%clk 0:00:07.5]} 34. Rxc5 {[%clk 0:02:14.7]}
34... Qxc5 {[%clk 0:00:06.9]} 35. d6+ {[%clk 0:02:13.1]} 35... Kh7 {[%clk
0:00:05.2]} 36. Qxc5 {[%clk 0:02:13.1]} 1-0

[Event "*** SCC Grand Prix: Titled Tuesday Blitz"]
[Site "Chess.com"]
[Date "2020.07.14"]
[Round "4"]
[White "marianokar"]
[Black "Yana_pro"]
[Result "1-0"]
[WhiteElo "2408"]
[BlackElo "2219"]
[TimeControl "180+1"]
[EndTime "10:37:24 PDT"]
[Termination "marianokar won by resignation"]

1. e4 {[%clk 0:03:00.9]} 1... e5 {[%clk 0:02:59.1]} 2. Nf3 {[%clk 0:02:57.6]}
2... Nc6 {[%clk 0:02:58.7]} 3. Bc4 {[%clk 0:02:57.5]} 3... Bc5 {[%clk
0:02:55.8]} 4. c3 {[%clk 0:02:55]} 4... Nf6 {[%clk 0:02:55.8]} 5. d4 {[%clk
0:02:54.9]} 5... exd4 {[%clk 0:02:56.4]} 6. e5 {[%clk 0:02:55.1]} 6... d5 {[%clk
0:02:55.7]} 7. Bb5 {[%clk 0:02:54.4]} 7... Ne4 {[%clk 0:02:54.1]} 8. cxd4 {[%clk
0:02:54.6]} 8... Bb4+ {[%clk 0:02:53.4]} 9. Nbd2 {[%clk 0:02:50.6]} 9... O-O
{[%clk 0:02:51.7]} 10. O-O {[%clk 0:02:37.4]} 10... Bg4 {[%clk 0:02:40.7]} 11.
Bxc6 {[%clk 0:02:31.2]} 11... bxc6 {[%clk 0:02:40.5]} 12. Nb3 {[%clk 0:02:31.7]}
12... f6 {[%clk 0:02:32.1]} 13. h3 {[%clk 0:01:46.3]} 13... Bh5 {[%clk
0:02:23.4]} 14. g4 {[%clk 0:01:44.1]} 14... Be8 {[%clk 0:02:09.7]} 15. Be3
{[%clk 0:01:39.4]} 15... Bd7 {[%clk 0:02:01.6]} 16. a3 {[%clk 0:01:31.1]} 16...
Be7 {[%clk 0:01:59.6]} 17. Ne1 {[%clk 0:01:21.2]} 17... Rb8 {[%clk 0:01:53]} 18.
Nd3 {[%clk 0:01:12.2]} 18... Qc8 {[%clk 0:01:40.5]} 19. f3 {[%clk 0:01:11.6]}
19... Ng5 {[%clk 0:01:39.9]} 20. Bxg5 {[%clk 0:01:10]} 20... fxg5 {[%clk
0:01:40.8]} 21. Qc2 {[%clk 0:00:50.4]} 21... Qb7 {[%clk 0:01:23.2]} 22. Nbc5
{[%clk 0:00:48.2]} 22... Bxc5 {[%clk 0:01:23.3]} 23. Nxc5 {[%clk 0:00:49.1]}
23... Qxb2 {[%clk 0:01:23]} 24. Qxb2 {[%clk 0:00:46.2]} 24... Rxb2 {[%clk
0:01:23.9]} 25. Nxd7 {[%clk 0:00:47]} 25... Rd8 {[%clk 0:01:23.4]} 1-0